fUST/lending_fUST_20240701
["ID","MTS","AMOUNT","RATE_DAILY","PERIOD"]
[330778062,1719774649544,-500.0,0.00016141,2]
[330778063,1719774649553,-500.0,0.00016141,2]
[330778064,1719774649563,-500.0,0.00016141,2]
[330778065,1719774649572,-500.0,0.00016141,2]
[330778066,1719774649582,-500.0,0.00016141,2]
[330778067,1719774649591,-151.0,0.00016141,2]
[330778068,1719774649600,-858.99,0.00016141,2]
[330778069,1719774649610,-500.0,0.00016141,2]
[330778070,1719774649619,-777.29,0.00016141,2]
[330778071,1719774649628,-151.0,0.00016141,2]
[330778072,1719774649639,-1599.27,0.00016141,2]
[330778073,1719774649650,-500.0,0.00016141,2]
[330778074,1719774649661,-500.0,0.00016141,2]
[330778075,1719774649671,-151.0,0.00016141,2]
[330778076,1719774649680,-1090.06,0.00016141,2]
[330778077,1719774649690,-979.26,0.00016141,2]
[330778078,1719774649699,-1908.45,0.00016141,2]
[330778079,1719774649708,-500.0,0.00016141,2]
[330778080,1719774649718,-1027.12,0.00016141,2]
[330778081,1719774649729,-2390.63,0.00016141,2]
[330778082,1719774649740,-500.0,0.00016141,2]
[330778083,1719774649752,-502.61,0.00016141,2]
[330778084,1719774649761,-528.45,0.00016141,2]
[330778085,1719774649771,-500.0,0.00016141,2]
[330778086,1719774649782,-507.54661726,0.00016141,2]
[330778087,1719774649792,-602.44,0.00016141,2]
[330778088,1719774649802,-511.04,0.00016141,2]
[330778089,1719774649811,-500.0,0.00016141,2]
[330778090,1719774649821,-490.43498004,0.00016141,2]
[330778091,1719774649838,-9.56501996,0.00016141,2]
[330778092,1719774649847,-1934.37962357,0.00016141,2]
[330778093,1719774649860,-62.60037643,0.00016141,2]
[330778094,1719774649869,-500.0,0.00016141,2]
[330778095,1719774649879,-500.0,0.00016141,2]
[330778096,1719774649889,-151.0,0.00016141,2]
[330778097,1719774649898,-465.92131681,0.00016141,2]
[330778098,1719774650040,-500.0,0.00015044,2]
[330778099,1719774650050,-257.06655071,0.00015592,2]
[330778100,1719774650062,-242.93344929,0.00015592,2]
[330778101,1719774650072,-500.0,0.0001614,2]
[330778102,1719774650081,-34.07868319,0.00016141,2]
[330778103,1719774650090,-500.0,0.00016142,2]
[330778104,1719774650100,-500.0,0.00016142,2]
[330778105,1719774650109,-1015.18,0.00016142,2]
[330778106,1719774650119,-905.39,0.00016142,2]
[330778107,1719774650129,-151.0,0.00016142,2]
[330778108,1719774650139,-151.0,0.00016142,2]
[330778109,1719774650148,-500.0,0.00016142,2]
[330778110,1719774650157,-1040.5,0.00016142,2]
[330778111,1719774650167,-1613.85,0.00016142,2]
[330778112,1719774650176,-500.0,0.00016142,2]
[330778113,1719774650186,-500.0,0.00016142,2]
[330778114,1719774650195,-500.0,0.00016143,2]
[330778115,1719774650210,-591.84,0.00016143,2]
[330778116,1719774650219,-500.0,0.00016143,2]
[330778117,1719774650229,-500.0,0.00016143,2]
[330778118,1719774650239,-500.0,0.00016143,2]
[330778119,1719774650249,-1078.14,0.00016143,2]
[330778120,1719774650259,-678.24,0.00016143,2]
[330778121,1719774650268,-500.0,0.00016143,2]
[330778122,1719774650279,-500.0,0.00016143,2]
[330778123,1719774650289,-500.0,0.00016143,2]
[330778124,1719774650300,-500.0,0.00016143,2]
[330778125,1719774650309,-500.0,0.00016143,2]
[330778126,1719774650319,-500.0,0.00016143,2]
[330778127,1719774650329,-500.0,0.00016143,2]
[330778128,1719774650338,-151.0,0.00016143,2]
[330778129,1719774650348,-500.0,0.00016143,2]
[330778130,1719774650357,-500.0,0.00016143,2]
[330778131,1719774650368,-889.15,0.00016143,2]
[330778132,1719774650378,-500.0,0.00016143,2]
[330778133,1719774650387,-525.10826017,0.00016143,2]
[330778134,1719774650397,-262.5938731,0.00016143,2]
[330778135,1719774650407,-500.0,0.00016143,2]
[330778136,1719774650416,-500.0,0.00016143,2]
[330778137,1719774650424,-537.19,0.00016143,2]
[330778138,1719774650435,-500.0,0.00016143,2]
[330778139,1719774650446,-500.0,0.00016143,2]
[330778140,1719774650455,-500.0,0.00016143,2]
[330778141,1719774650465,-1091.19,0.00016143,2]
[330778142,1719774650475,-500.0,0.00016143,2]
[330778143,1719774650485,-500.0,0.00016143,2]
[330778144,1719774650495,-500.0,0.00016143,2]
[330778145,1719774650504,-500.0,0.00016143,2]
[330778146,1719774650513,-500.0,0.00016143,2]
[330778147,1719774650523,-500.0,0.00016143,2]
[330778148,1719774650532,-500.0,0.00016143,2]
[330778149,1719774650542,-540.41,0.00016143,2]
[330778150,1719774650551,-500.0,0.00016143,2]
[330778151,1719774650560,-500.0,0.00016143,2]
[330778152,1719774650650,-500.0,0.00016143,2]
[330778153,1719774650661,-500.0,0.00016143,2]
[330778154,1719774650671,-500.0,0.00016143,2]
[330778155,1719774650680,-500.0,0.00016143,2]
[330778156,1719774650690,-500.0,0.00016143,2]
[330778157,1719774650699,-500.0,0.00016143,2]
[330778158,1719774650709,-500.0,0.00016143,2]
[330778159,1719774650719,-500.0,0.00016143,2]
[330778160,1719774650728,-500.0,0.00016143,2]
[330778161,1719774650738,-684.88,0.00016143,2]
[330778162,1719774650750,-500.0,0.00016143,2]
[330778163,1719774650760,-500.0,0.00016143,2]
[330778164,1719774650770,-500.0,0.00016143,2]
[330778165,1719774650781,-691.53,0.00016143,2]
[330778166,1719774650791,-1989.05,0.00016143,2]
[330778167,1719774650800,-500.0,0.00016143,2]
[330778168,1719774650810,-968.01,0.00016143,2]
[330778169,1719774650819,-500.0,0.00016143,2]
[330778170,1719774650829,-500.0,0.00016143,2]
[330778171,1719774650839,-500.0,0.00016143,2]
[330778172,1719774650848,-500.0,0.00016143,2]
[330778173,1719774650857,-500.0,0.00016143,2]
[330778174,1719774650867,-1166.78,0.00016143,2]
[330778175,1719774650876,-500.0,0.00016143,2]
[330778176,1719774650886,-500.0,0.00016143,2]
[330778177,1719774650896,-662.06,0.00016143,2]
[330778178,1719774650905,-758.8,0.00016143,2]
[330778179,1719774650914,-1479.72,0.00016143,2]
[330778180,1719774650923,-647.68,0.00016143,2]
[330778181,1719774650933,-500.0,0.00016143,2]
[330778182,1719774650944,-631.0,0.00016143,2]
[330778183,1719774650955,-1585.51369897,0.00016143,2]
[330778184,1719774651434,-500.0,0.00015045,2]
[330778185,1719774651445,-500.0,0.00015045,2]
[330778186,1719774651454,-151.0,0.00015595,2]
[330778187,1719774651464,-151.0,0.00016141,2]
[330778188,1719774651475,-180.29630103,0.00016143,2]
[330778189,1719774651487,-163.2700881,0.00016143,2]
[330778190,1719774651496,-279.917869,0.00016143,2]
[330778191,1719774651506,-500.0,0.00016143,2]
[330778192,1719774651515,-279.917869,0.00016143,2]
[330778193,1719774651525,-500.0,0.00016143,2]
[330778194,1719774651534,-151.0,0.00016143,2]
[330778195,1719774651543,-500.0,0.00016143,2]
[330778196,1719774651553,-500.0,0.00016143,2]
[330778197,1719774651562,-500.0,0.00016143,2]
[330778198,1719774651571,-151.0,0.00016143,2]
[330778199,1719774651579,-923.21,0.00016143,2]
[330778200,1719774651589,-1187.82,0.00016143,2]
[330778201,1719774651598,-500.0,0.00016143,2]
[330778202,1719774651607,-921.78,0.00016143,2]
[330778203,1719774651616,-1497.12,0.00016143,2]
[330778204,1719774651626,-500.0,0.00016143,2]
[330778205,1719774651636,-544.97,0.00016143,2]
[330778206,1719774651646,-7821.19882648,0.00016143,2]
[330778207,1719774651903,-151.0,0.00015595,2]
[330778208,1719774651913,-151.0,0.00016141,2]
[330778209,1719774651923,-1804.65424492,0.00016143,2]
[330778210,1719774651935,-1737.76934967,0.00016143,2]
[330778211,1719774720255,1065.28205322,0.00014944,2]
[330778212,1719774768325,1125.09223825,0.00014999,4]
[330778214,1719774894873,634.32497443,0.00014999,2]
[330778215,1719774907085,1297.29567024,0.00014999,2]
[330778216,1719774908812,286.10764975,0.00014999,2]
[330778217,1719774909149,2181.23318222,0.00015,2]
[330778218,1719774924530,1913.6932576,0.00014999,2]
[330778219,1719774925802,24900.0,0.00014046,2]
[330778220,1719774939379,229.02417109,0.00014999,2]
[330778221,1719774939999,286.2204946,0.00014999,2]
[330778222,1719774949450,293.07017019,0.00014999,2]
[330778223,1719774958901,9601.79213166,0.00014998,2]
[330778224,1719775000725,1310.73099499,0.00014943,2]
[330778225,1719775010149,256.66915544,0.00014999,2]
[330778226,1719775014625,251.5005285,0.00014045,2]
[330778227,1719775031300,565.7746747,0.00014999,2]
[330778228,1719775037712,401.37235246,0.00014999,2]
[330778229,1719775037888,457.57827588,0.00014999,2]
[330778230,1719775039049,154.85288975,0.00014999,2]
[330778231,1719775041288,402.64531294,0.00014999,2]
[330778232,1719775053660,159.39604936,0.00014999,2]
[330778233,1719775061121,318.0694556,0.00014999,2]
[330778234,1719775064513,164.85188126,0.00014999,2]
[330778235,1719775069768,154.85288975,0.00014999,2]
[330778236,1719775084829,154.85288975,0.00014999,2]
[330778238,1719775131462,597.87737426,0.00014999,2]
[330778240,1719775172092,212.51284347,0.00014999,2]
[330778241,1719775215204,282.93616103,0.00014999,2]
[330778242,1719775235273,612.735,0.00014044,2]
[330778244,1719775238141,2117.15878926,0.00014999,2]
[330778245,1719775281679,1146.88962059,0.00014942,2]
[330778246,1719775283293,-300.0,0.0001504,2]
[330778247,1719775283320,-300.0,0.0001504,2]
[330778248,1719775283346,-2177.17,0.00015041,2]
[330778249,1719775283373,-500.0,0.00015041,2]
[330778250,1719775283399,-337.25974118,0.00015041,2]
[330778251,1719775283424,-667.6,0.00015041,2]
[330778252,1719775283454,-1669.41,0.00015041,2]
[330778253,1719775283497,-1910.87,0.00015041,2]
[330778254,1719775283525,-500.0,0.00015041,2]
[330778255,1719775283555,-500.0,0.00015041,2]
[330778256,1719775283583,-500.0,0.00015042,2]
[330778257,1719775283610,-500.0,0.00015042,2]
[330778258,1719775283638,-500.0,0.00015042,2]
[330778259,1719775283664,-500.0,0.00015042,2]
[330778260,1719775283690,-500.0,0.00015042,2]
[330778261,1719775283718,-500.0,0.00015042,2]
[330778262,1719775283743,-500.0,0.00015042,2]
[330778263,1719775283772,-500.0,0.00015042,2]
[330778264,1719775283796,-500.0,0.00015042,2]
[330778265,1719775283820,-406.69025882,0.00015042,2]
[330778266,1719775468750,1724.1991533,0.00014043,2]
[330778267,1719775562137,1003.52841799,0.00014941,2]
[330778268,1719775720112,-300.0,0.00015039,2]
[330778269,1719775720145,-300.0,0.00015039,2]
[330778270,1719775720177,-123.40870645,0.0001504,2]
[330778271,1719775720429,-322.44653313,0.0001504,2]
[330778272,1719775744679,-300.0,0.00015039,2]
[330778273,1719775744710,-300.0,0.00015039,2]
[330778274,1719775744741,-144.32581124,0.0001504,2]
[330778275,1719775744795,-355.67418876,0.0001504,2]
[330778276,1719775744828,-4.91576286,0.0001504,2]
[330778277,1719775769851,-766.4241265,0.0001504,2]
[330778278,1719775769907,-758.87876866,0.0001504,2]
[330778280,1719775786988,2469.3647555,0.00014043,2]
[330778281,1719775794801,-796.9301844,0.0001504,2]
[330778282,1719775794912,-208.74119089,0.0001504,2]
[330778312,1719775832404,-300.0,0.00015039,2]
[330778313,1719775832414,-300.0,0.00015039,2]
[330778315,1719775832424,-12.735,0.0001504,2]
[330778382,1719775839372,-500.0,0.00015039,2]
[330778384,1719775839382,-500.0,0.00015039,2]
[330778386,1719775839392,-702.8,0.0001504,2]
[330778388,1719775839403,-500.0,0.0001504,2]
[330778390,1719775839415,-4668.12,0.0001504,2]
[330778392,1719775839433,-4504.32,0.0001504,2]
[330778395,1719775839451,-2378.36,0.0001504,2]
[330778397,1719775839466,-624.68339889,0.0001504,2]
[330778400,1719775839482,-500.0,0.0001504,2]
[330778402,1719775839500,-2086.45,0.0001504,2]
[330778405,1719775839517,-2122.65,0.0001504,2]
[330778407,1719775839535,-2028.41,0.0001504,2]
[330778409,1719775839552,-621.21,0.0001504,2]
[330778412,1719775839568,-6829.97,0.0001504,2]
[330778414,1719775839584,-1933.74,0.0001504,2]
[330778417,1719775839605,-498.58126312,0.0001504,2]
[330778419,1719775839620,-500.0,0.0001504,2]
[330778422,1719775839636,-589.08,0.0001504,2]
[330778424,1719775839651,-17726.31,0.0001504,2]
[330778428,1719775839666,-2515.04,0.0001504,2]
[330778432,1719775839684,-4400.89,0.0001504,2]
[330778435,1719775839702,-506.64,0.0001504,2]
[330778438,1719775839718,-500.0,0.0001504,2]
[330778440,1719775839731,-1046.51,0.0001504,2]
[330778442,1719775839744,-2277.06,0.0001504,2]
[330778444,1719775839760,-1992.35,0.0001504,2]
[330778447,1719775839775,-500.0,0.00015041,2]
[330778449,1719775839789,-500.0,0.00015041,2]
[330778451,1719775839804,-500.0,0.00015041,2]
[330778453,1719775839819,-500.0,0.00015041,2]
[330778456,1719775839831,-2306.45,0.00015041,2]
[330778458,1719775839845,-500.0,0.00015041,2]
[330778460,1719775839861,-500.0,0.00015041,2]
[330778462,1719775839875,-500.0,0.00015041,2]
[330778465,1719775839888,-500.0,0.00015041,2]
[330778467,1719775839902,-500.0,0.00015041,2]
[330778469,1719775839916,-567.62678613,0.00015041,2]
[330778471,1719775839929,-514.12,0.00015041,2]
[330778474,1719775839943,-1254.94,0.00015041,2]
[330778476,1719775839955,-2181.37,0.00015041,2]
[330778478,1719775839971,-501.00203503,0.00015041,2]
[330778480,1719775839985,-2728.97,0.00015041,2]
[330778481,1719775840003,-515.09824929,0.00015041,2]
[330778482,1719775840019,-661.86,0.00015041,2]
[330778483,1719775840036,-501.5096367,0.00015041,2]
[330778484,1719775840050,-500.0,0.00015041,2]
[330778485,1719775840065,-500.0,0.00015041,2]
[330778486,1719775840080,-500.0,0.00015041,2]
[330778487,1719775840095,-912.07,0.00015041,2]
[330778488,1719775840109,-501.85263528,0.00015041,2]
[330778489,1719775840124,-659.72,0.00015041,2]
[330778490,1719775840139,-1634.84,0.00015041,2]
[330778491,1719775840153,-500.0,0.00015041,2]
[330778492,1719775840167,-500.0,0.00015041,2]
[330778493,1719775840180,-500.0,0.00015041,2]
[330778494,1719775840194,-500.0,0.00015041,2]
[330778495,1719775840209,-500.0,0.00015041,2]
[330778497,1719775840224,-500.0,0.00015041,2]
[330778500,1719775840238,-1397.79,0.00015041,2]
[330778502,1719775840252,-500.0,0.00015041,2]
[330778503,1719775840266,-500.0,0.00015041,2]
[330778504,1719775840280,-18287.66,0.00015041,2]
[330778505,1719775840296,-500.0,0.00015041,2]
[330778506,1719775840310,-500.0,0.00015041,2]
[330778507,1719775840324,-500.0,0.00015041,2]
[330778508,1719775840338,-162.5448331,0.00015041,2]
[330778509,1719775840352,-720.15,0.00015041,2]
[330778510,1719775840365,-500.0,0.00015041,2]
[330778511,1719775840380,-961.27,0.00015041,2]
[330778512,1719775840394,-500.0,0.00015041,2]
[330778513,1719775840408,-779.73,0.00015041,2]
[330778514,1719775840422,-500.0,0.00015041,2]
[330778515,1719775840436,-500.0,0.00015041,2]
[330778516,1719775840450,-773.44,0.00015041,2]
[330778517,1719775840466,-502.58366874,0.00015041,2]
[330778519,1719775840480,-500.0,0.00015041,2]
[330778521,1719775840495,-656.52,0.00015041,2]
[330778523,1719775840509,-500.0,0.00015041,2]
[330778525,1719775840522,-500.0,0.00015041,2]
[330778526,1719775840536,-500.0,0.00015041,2]
[330778527,1719775840550,-500.0,0.00015041,2]
[330778528,1719775840564,-500.0,0.00015041,2]
[330778529,1719775840578,-500.0,0.00015041,2]
[330778530,1719775840595,-500.0,0.00015041,2]
[330778531,1719775840606,-500.0,0.00015041,2]
[330778532,1719775840616,-500.0,0.00015041,2]
[330778533,1719775840626,-500.0,0.00015041,2]
[330778544,1719775840830,-713.51,0.00015041,2]
[330778547,1719775840854,-500.0,0.00015041,2]
[330778549,1719775840864,-506.11281596,0.00015041,2]
[330778551,1719775840875,-500.0,0.00015041,2]
[330778553,1719775840885,-518.64692425,0.00015041,2]
[330778555,1719775840895,-11012.17,0.00015041,2]
[330778556,1719775840905,-500.0,0.00015041,2]
[330778558,1719775840916,-500.0,0.00015041,2]
[330778560,1719775840925,-7329.46,0.00015041,2]
[330778562,1719775840935,-802.06,0.00015041,2]
[330778563,1719775840945,-500.0,0.00015041,2]
[330778565,1719775840955,-3618.63,0.00015041,2]
[330778567,1719775840966,-500.0,0.00015041,2]
[330778568,1719775840976,-2518.22,0.00015041,2]
[330778570,1719775840985,-503.58440114,0.00015041,2]
[330778572,1719775840995,-1575.31,0.00015041,2]
[330778574,1719775841005,-502.81745339,0.00015041,2]
[330778576,1719775841016,-500.0,0.00015041,2]
[330778578,1719775841026,-706.39,0.00015041,2]
[330778580,1719775841036,-849.86,0.00015041,2]
[330778581,1719775841045,-852.01,0.00015041,2]
[330778583,1719775841055,-500.0,0.00015041,2]
[330778585,1719775841064,-503.72257834,0.00015041,2]
[330778587,1719775841075,-500.0,0.00015041,2]
[330778589,1719775841085,-630.82,0.00015041,2]
[330778590,1719775841095,-500.0,0.00015041,2]
[330778591,1719775841105,-500.0,0.00015041,2]
[330778592,1719775841116,-500.0,0.00015041,2]
[330778593,1719775841126,-1466.0,0.00015041,2]
[330778594,1719775841136,-500.0,0.00015041,2]
[330778595,1719775841146,-500.0,0.00015041,2]
[330778596,1719775841156,-500.0,0.00015041,2]
[330778597,1719775841166,-999.22,0.00015041,2]
[330778598,1719775841176,-500.0,0.00015041,2]
[330778599,1719775841186,-1749.41,0.00015041,2]
[330778600,1719775841195,-500.0,0.00015041,2]
[330778601,1719775841205,-941.53,0.00015041,2]
[330778602,1719775841215,-1183.03,0.00015041,2]
[330778603,1719775841225,-500.0,0.00015041,2]
[330778604,1719775841234,-500.0,0.00015041,2]
[330778605,1719775841244,-500.0,0.00015041,2]
[330778606,1719775841253,-500.0,0.00015041,2]
[330778607,1719775841262,-500.0,0.00015041,2]
[330778608,1719775841271,-552.24,0.00015041,2]
[330778609,1719775841281,-1830.57,0.00015041,2]
[330778610,1719775841290,-500.0,0.00015041,2]
[330778611,1719775841299,-500.0,0.00015041,2]
[330778612,1719775841309,-500.0,0.00015041,2]
[330778613,1719775841319,-500.0,0.00015041,2]
[330778614,1719775841329,-500.0,0.00015041,2]
[330778615,1719775841339,-571.36835007,0.00015041,2]
[330778616,1719775841348,-152999.21612714,0.00015042,2]
[330778617,1719775841358,-93.30974118,0.00015042,2]
[330778618,1719775841367,-525.55562357,0.00015042,2]
[330778619,1719775841379,-500.0,0.00015042,2]
[330778620,1719775841389,-500.0,0.00015042,2]
[330778621,1719775841398,-500.0,0.00015042,2]
[330778622,1719775841408,-500.0,0.00015042,2]
[330778623,1719775841418,-500.0,0.00015042,2]
[330778624,1719775841427,-500.0,0.00015042,2]
[330778625,1719775841438,-500.0,0.00015042,2]
[330778626,1719775841447,-788.81,0.00015042,2]
[330778627,1719775841457,-500.0,0.00015042,2]
[330778628,1719775841468,-500.0,0.00015042,2]
[330778629,1719775841478,-500.0,0.00015042,2]
[330778630,1719775841487,-550.43610066,0.00015042,2]
[330778631,1719775841497,-500.0,0.00015042,2]
[330778632,1719775841506,-950.62,0.00015042,2]
[330778633,1719775841516,-500.0,0.00015042,2]
[330778634,1719775841525,-500.0,0.00015042,2]
[330778635,1719775841534,-500.0,0.00015042,2]
[330778636,1719775841544,-500.0,0.00015042,2]
[330778637,1719775841553,-554.79,0.00015042,2]
[330778638,1719775841563,-500.0,0.00015042,2]
[330778639,1719775841572,-653.05,0.00015042,2]
[330778640,1719775841582,-500.0,0.00015042,2]
[330778641,1719775841591,-501.72250551,0.00015042,2]
[330778642,1719775841606,-502.84176191,0.00015042,2]
[330778643,1719775841617,-567.00030658,0.00015042,2]
[330778644,1719775841627,-506.6881832,0.00015042,2]
[330778645,1719775841639,-501.9422784,0.00015042,2]
[330778646,1719775841649,-500.0,0.00015042,2]
[330778647,1719775841658,-515.15,0.00015042,2]
[330778648,1719775841667,-500.0,0.00015042,2]
[330778649,1719775841679,-500.0,0.00015042,2]
[330778650,1719775841689,-500.0,0.00015042,2]
[330778651,1719775841699,-257.44982277,0.00015042,2]
[330778652,1719775841708,-503.17759447,0.00015042,2]
[330778653,1719775841718,-500.0,0.00015042,2]
[330778654,1719775841728,-500.0,0.00015042,2]
[330778655,1719775841737,-500.0,0.00015042,2]
[330778656,1719775841747,-500.0,0.00015042,2]
[330778657,1719775841756,-500.0,0.00015042,2]
[330778658,1719775841767,-500.0,0.00015042,2]
[330778659,1719775841776,-508.10731312,0.00015042,2]
[330778660,1719775841786,-500.0,0.00015042,2]
[330778661,1719775841795,-548.91,0.00015042,2]
[330778662,1719775841804,-500.0,0.00015042,2]
[330778663,1719775841813,-500.0,0.00015042,2]
[330778664,1719775841822,-500.0,0.00015042,2]
[330778665,1719775841832,-502.46627217,0.00015042,2]
[330778666,1719775841841,-500.0,0.00015042,2]
[330778667,1719775841850,-500.0,0.00015042,2]
[330778668,1719775841859,-500.0,0.00015042,2]
[330778669,1719775841868,-500.0,0.00015042,2]
[330778670,1719775841877,-500.0,0.00015042,2]
[330778671,1719775841886,-1457.4,0.00015042,2]
[330778672,1719775841896,-500.0,0.00015042,2]
[330778673,1719775841905,-500.0,0.00015042,2]
[330778674,1719775841914,-500.0,0.00015042,2]
[330778675,1719775841923,-500.0,0.00015042,2]
[330778676,1719775841932,-500.0,0.00015042,2]
[330778677,1719775841941,-545.13,0.00015042,2]
[330778678,1719775841951,-500.0,0.00015042,2]
[330778679,1719775841960,-237.5712589,0.00015042,2]
[330778680,1719775841971,-500.0,0.00015042,2]
[330778681,1719775841981,-500.0,0.00015042,2]
[330778682,1719775841990,-500.0,0.00015042,2]
[330778683,1719775842000,-500.0,0.00015042,2]
[330778684,1719775842010,-500.0,0.00015042,2]
[330778685,1719775842020,-500.0,0.00015042,2]
[330778686,1719775842030,-500.0,0.00015042,2]
[330778687,1719775842040,-500.0,0.00015042,2]
[330778688,1719775842050,-506.07113532,0.00015042,2]
[330778689,1719775842059,-515.83,0.00015042,2]
[330778690,1719775842069,-500.0,0.00015042,2]
[330778691,1719775842079,-500.0,0.00015042,2]
[330778692,1719775842088,-500.0,0.00015042,2]
[330778693,1719775842098,-500.0,0.00015042,2]
[330778694,1719775842107,-500.0,0.00015042,2]
[330778695,1719775842116,-500.0,0.00015042,2]
[330778696,1719775842126,-500.0,0.00015042,2]
[330778697,1719775842135,-500.0,0.00015042,2]
[330778698,1719775842145,-712.52,0.00015042,2]
[330778699,1719775842154,-500.0,0.00015042,2]
[330778700,1719775842164,-500.0,0.00015042,2]
[330778701,1719775842173,-501.9053898,0.00015042,2]
[330778702,1719775842183,-500.0,0.00015042,2]
[330778703,1719775842192,-507.55763966,0.00015042,2]
[330778704,1719775842202,-356.11122265,0.00015042,2]
[330778705,1719775842211,-502.60302224,0.00015042,2]
[330778706,1719775842222,-230.84692815,0.00015042,2]
[330778707,1719775842231,-570.78,0.00015042,2]
[330778708,1719775842241,-500.2637653,0.00015042,2]
[330778709,1719775842251,-504.96553051,0.00015042,2]
[330778710,1719775842261,-500.0,0.00015042,2]
[330778711,1719775842270,-500.0,0.00015042,2]
[330778712,1719775842280,-639.76298879,0.00015042,2]
[330778713,1719775842289,-500.0,0.00015042,2]
[330778714,1719775842299,-504.25480397,0.00015042,2]
[330778715,1719775842309,-505.7045476,0.00015042,2]
[330778716,1719775842319,-500.0,0.00015042,2]
[330778717,1719775842329,-500.0,0.00015042,2]
[330778718,1719775842339,-500.0,0.00015042,2]
[330778719,1719775842349,-538.94226023,0.00015042,2]
[330778720,1719775842359,-500.0,0.00015042,2]
[330778721,1719775842370,-500.0,0.00015042,2]
[330778722,1719775842380,-500.0,0.00015042,2]
[330778723,1719775842391,-507.15160351,0.00015042,2]
[330778724,1719775842400,-500.0,0.00015042,2]
[330778725,1719775842410,-500.0,0.00015042,2]
[330778726,1719775842420,-500.0,0.00015042,2]
[330778727,1719775842430,-500.0,0.00015042,2]
[330778728,1719775842440,-500.0,0.00015042,2]
[330778729,1719775842450,-453.7514208,0.00015042,2]
[330778730,1719775842460,-500.0,0.00015042,2]
[330778731,1719775842470,-500.0,0.00015042,2]
[330778732,1719775842480,-500.0,0.00015042,2]
[330778733,1719775842489,-512.96480294,0.00015042,2]
[330778734,1719775842499,-502.59936462,0.00015042,2]
[330778735,1719775842508,-502.5492614,0.00015042,2]
[330778736,1719775842517,-500.0,0.00015042,2]
[330778737,1719775842527,-500.0,0.00015042,2]
[330778738,1719775842537,-500.0,0.00015042,2]
[330778739,1719775842547,-500.0,0.00015042,2]
[330778740,1719775842556,-500.0,0.00015042,2]
[330778741,1719775842566,-500.0,0.00015042,2]
[330778742,1719775842576,-567.09,0.00015042,2]
[330778743,1719775842586,-500.0,0.00015042,2]
[330778744,1719775842598,-503.66960898,0.00015042,2]
[330778745,1719775842608,-621.72,0.00015042,2]
[330778746,1719775842617,-500.0,0.00015042,2]
[330778747,1719775842627,-500.0,0.00015042,2]
[330778748,1719775842637,-513.40710784,0.00015042,2]
[330778749,1719775842648,-500.0,0.00015042,2]
[330778750,1719775842658,-500.0,0.00015042,2]
[330778751,1719775842667,-502.81978746,0.00015042,2]
[330778752,1719775842679,-500.0,0.00015042,2]
[330778753,1719775842688,-500.0,0.00015042,2]
[330778754,1719775842698,-500.0,0.00015042,2]
[330778755,1719775842707,-393.59091306,0.00015042,2]
[330778756,1719775842718,-500.0,0.00015042,2]
[330778757,1719775842728,-500.0,0.00015042,2]
[330778758,1719775842738,-500.0,0.00015042,2]